fUST/lending_fUST_20241031
["ID","MTS","AMOUNT","RATE_DAILY","PERIOD"]
[341053699,1730308166251,-500.0,0.00035616,5]
[341053700,1730308166274,-500.0,0.00035616,5]
[341053701,1730308166294,-224.433016,0.00035616,14]
[341053702,1730308166314,-500.0,0.00035616,5]
[341053703,1730308166339,-224.433016,0.00035616,14]
[341053704,1730308166360,-224.433016,0.00035616,14]
[341053705,1730308166384,-224.433016,0.00035616,14]
[341053706,1730308166407,-500.0,0.00035616,5]
[341053707,1730308166428,-579.40768274,0.00035616,5]
[341053708,1730308166450,-608.24423007,0.00035616,5]
[341053709,1730308166471,-620.51122098,0.00035616,5]
[341053710,1730308166491,-500.0,0.00035616,5]
[341053711,1730308166513,-232.566056,0.00035616,14]
[341053712,1730308166532,-500.0,0.00035616,5]
[341053713,1730308166553,-500.0,0.00035616,5]
[341053714,1730308166574,-500.0,0.00035616,5]
[341053715,1730308166596,-500.0,0.00035616,5]
[341053716,1730308166616,-500.0,0.00035616,5]
[341053717,1730308166637,-151.0,0.00035616,14]
[341053718,1730308166657,-151.0,0.00035616,14]
[341053719,1730308166678,-481.38853578,0.00035616,5]
[341053720,1730308166700,-500.0,0.00035616,5]
[341053721,1730308166721,-500.0,0.00035616,5]
[341053722,1730308166744,-751.55,0.00035616,5]
[341053723,1730308166851,-151.0,0.00035616,14]
[341053724,1730308166874,-151.0,0.00035616,14]
[341053725,1730308166896,-500.0,0.00035616,5]
[341053726,1730308166918,-500.0,0.00035616,5]
[341053727,1730308166941,-500.0,0.00035616,5]
[341053728,1730308166961,-500.0,0.00035616,5]
[341053729,1730308166983,-500.0,0.00035616,5]
[341053730,1730308167004,-500.0,0.00035616,5]
[341053731,1730308167027,-774.72,0.00035616,5]
[341053732,1730308167048,-500.0,0.00035616,5]
[341053733,1730308167068,-151.0,0.00035616,14]
[341053734,1730308167089,-500.0,0.00035616,5]
[341053735,1730308167110,-151.0,0.00035616,14]
[341053736,1730308167132,-500.0,0.00035616,5]
[341053737,1730308167152,-500.0,0.00035616,5]
[341053738,1730308167174,-500.0,0.00035616,5]
[341053739,1730308167194,-500.0,0.00035616,5]
[341053740,1730308167215,-500.0,0.00035616,5]
[341053741,1730308167236,-500.0,0.00035616,5]
[341053742,1730308167255,-3000.0,0.00035616,90]
[341053743,1730308167275,-1642.904862,0.00035616,90]
[341053744,1730308167295,-500.0,0.00035616,5]
[341053745,1730308167316,-500.0,0.00035616,5]
[341053746,1730308167338,-500.0,0.00035616,5]
[341053747,1730308167359,-500.0,0.00035616,5]
[341053748,1730308167382,-883.6,0.00035616,5]
[341053749,1730308167403,-1000.0,0.00035616,5]
[341053750,1730308167425,-500.0,0.00035616,5]
[341053751,1730308167448,-500.0,0.00035616,5]
[341053752,1730308167470,-500.0,0.00035616,5]
[341053753,1730308167491,-500.0,0.00035616,5]
[341053754,1730308167511,-500.0,0.00035616,5]
[341053755,1730308167537,-500.0,0.00035616,5]
[341053756,1730308167559,-300.0,0.00035616,5]
[341053757,1730308167581,-500.0,0.00035832,2]
[341053758,1730308167601,-521.43347357,0.00035832,5]
[341053759,1730308167622,-500.0,0.00035832,5]
[341053760,1730308167642,-500.0,0.00035833,2]
[341053761,1730308167662,-500.0,0.00035833,2]
[341053762,1730308167683,-500.0,0.00035833,2]
[341053763,1730308167704,-500.0,0.00035833,2]
[341053764,1730308167725,-33.48811713,0.00035833,2]
[341053765,1730308183568,1453.80918122,0.00032852,2]
[341053766,1730308190316,895.78,0.00034579,30]
[341053767,1730308190610,858.49,0.00034579,30]
[341053791,1730308235893,-997.26170727,0.00034579,2]
[341053793,1730308235903,-150.0,0.00034579,2]
[341053795,1730308235912,-151.0,0.00035481,3]
[341053797,1730308235922,-500.0,0.00035481,3]
[341053799,1730308235931,-400.0,0.00035615,2]
[341053801,1730308235941,-400.0,0.00035615,2]
[341053803,1730308235951,-500.0,0.00035615,2]
[341053805,1730308235961,-633.99034815,0.00035615,2]
[341053807,1730308235970,-176.0,0.00035616,2]
[341053809,1730308235983,-500.0,0.00035616,5]
[341053811,1730308235992,-181.46733245,0.00035616,5]
[341053816,1730308236023,-318.53266755,0.00035616,5]
[341053818,1730308236033,-500.0,0.00035616,5]
[341053820,1730308236042,-500.0,0.00035616,5]
[341053822,1730308236051,-500.0,0.00035616,5]
[341053824,1730308236060,-502.27216573,0.00035616,5]
[341053826,1730308236069,-500.0,0.00035616,5]
[341053828,1730308236079,-504.95137814,0.00035616,5]
[341053829,1730308236088,-500.0,0.00035616,5]
[341053830,1730308236098,-500.0,0.00035616,5]
[341053831,1730308236107,-500.0,0.00035616,5]
[341053832,1730308236117,-500.0,0.00035616,5]
[341053833,1730308236127,-643.078577,0.00035616,14]
[341053834,1730308236137,-500.0,0.00035616,5]
[341053835,1730308236146,-643.078577,0.00035616,14]
[341053836,1730308236156,-500.0,0.00035616,5]
[341053837,1730308236165,-726.23,0.00035616,5]
[341053838,1730308236175,-500.0,0.00035616,5]
[341053839,1730308236184,-643.078577,0.00035616,14]
[341053840,1730308236194,-643.078577,0.00035616,14]
[341053841,1730308236203,-500.0,0.00035616,5]
[341053842,1730308236213,-500.0,0.00035616,5]
[341053843,1730308236222,-500.0,0.00035616,5]
[341053844,1730308236231,-500.0,0.00035616,5]
[341053845,1730308236240,-763.25,0.00035616,5]
[341053846,1730308236250,-500.0,0.00035616,5]
[341053847,1730308236259,-500.0,0.00035616,5]
[341053848,1730308236267,-500.0,0.00035616,5]
[341053849,1730308236277,-500.0,0.00035616,5]
[341053850,1730308236286,-500.0,0.00035616,5]
[341053851,1730308236296,-500.0,0.00035616,2]
[341053852,1730308236305,-500.0,0.00035616,2]
[341053853,1730308236314,-493.14948058,0.00035616,2]
[341053854,1730308236326,-6.85051942,0.00035616,2]
[341053855,1730308236335,-500.0,0.00035616,2]
[341053856,1730308236344,-500.0,0.00035616,2]
[341053857,1730308236353,-956.63,0.00035616,5]
[341053858,1730308236363,-500.0,0.00035616,2]
[341053859,1730308236372,-500.0,0.00035616,2]
[341053860,1730308236382,-500.0,0.00035616,2]
[341053861,1730308236393,-325.93370563,0.00035616,5]
[341053865,1730308238762,-174.06629437,0.00035616,5]
[341053866,1730308238773,-500.0,0.00035616,5]
[341053867,1730308238782,-48.62455224,0.00035616,5]
[341053900,1730308244709,-451.37544776,0.00035616,5]
[341053901,1730308244718,-500.0,0.00035616,5]
[341053902,1730308244728,-502.17970305,0.00035616,5]
[341053903,1730308244738,-500.0,0.00035616,5]
[341053904,1730308244747,-500.0,0.00035616,5]
[341053905,1730308244759,-500.0,0.00035616,5]
[341053906,1730308244770,-500.0,0.00035616,5]
[341053907,1730308244780,-500.0,0.00035616,5]
[341053908,1730308244790,-503.96381681,0.00035616,5]
[341053909,1730308244799,-500.0,0.00035616,5]
[341053910,1730308244810,-500.0,0.00035616,5]
[341053911,1730308244820,-500.0,0.00035616,5]
[341053912,1730308244830,-500.0,0.00035616,5]
[341053913,1730308244840,-500.0,0.00035616,5]
[341053914,1730308244851,-500.0,0.00035616,5]
[341053915,1730308244861,-309.74303647,0.00035616,5]
[341053916,1730308244871,-509.69771823,0.00035616,5]
[341053917,1730308244883,-500.0,0.00035616,5]
[341053918,1730308244895,-500.0,0.00035616,5]
[341053919,1730308244906,-500.0,0.00035616,5]
[341053920,1730308244915,-500.0,0.00035616,5]
[341053921,1730308244925,-500.0,0.00035616,5]
[341053922,1730308244935,-151.0,0.00035616,2]
[341053923,1730308244945,-151.0,0.00035616,2]
[341053924,1730308244955,-151.0,0.00035616,2]
[341053925,1730308244966,-505.02981432,0.00035616,5]
[341053926,1730308244976,-500.0,0.00035616,5]
[341053927,1730308244986,-403.66482928,0.00035616,5]
[341053928,1730308244996,-503.31374485,0.00035616,5]
[341053929,1730308245006,-500.0,0.00035616,5]
[341053930,1730308245018,-500.0,0.00035616,5]
[341053931,1730308245028,-500.0,0.00035616,5]
[341053932,1730308245038,-508.33154068,0.00035616,5]
[341053933,1730308245048,-500.0,0.00035616,5]
[341053934,1730308245058,-500.0,0.00035616,5]
[341053935,1730308245068,-500.0,0.00035616,5]
[341053936,1730308245079,-500.0,0.00035616,5]
[341053937,1730308245089,-500.0,0.00035616,5]
[341053938,1730308245098,-500.0,0.00035616,3]
[341053939,1730308245108,-500.0,0.00035616,5]
[341053940,1730308245119,-500.0,0.00035616,5]
[341053941,1730308245130,-648.07,0.00035616,5]
[341053942,1730308245141,-151.7951676,0.00035761,2]
[341053943,1730308245151,-250.24,0.00035824,10]
[341053944,1730308245160,-208.53,0.00035824,10]
[341053945,1730308245170,-173.78,0.00035824,10]
[341053946,1730308245179,-687.22609081,0.00035833,2]
[341053947,1730308245189,-500.0,0.00035833,5]
[341053948,1730308245199,-500.0,0.00035833,5]
[341053949,1730308245209,-500.0,0.00035833,5]
[341053950,1730308245219,-500.0,0.00035833,5]
[341053951,1730308245229,-199.283022,0.00035833,14]
[341053952,1730308245239,-199.283022,0.00035833,14]
[341053953,1730308245249,-500.0,0.00035833,2]
[341053954,1730308245258,-500.0,0.00035833,2]
[341053955,1730308245268,-500.0,0.00035833,2]
[341053956,1730308245279,-448.06,0.00035833,2]
[341053957,1730308245289,-202.44491069,0.00035833,15]
[341053958,1730308245298,-500.0,0.00035833,15]
[341053959,1730308245309,-430.21034934,0.00035833,15]
[341053960,1730308245319,-500.0,0.00035833,15]
[341053961,1730308245329,-189.68843165,0.00035833,15]
[341053962,1730308245339,-183.33631312,0.00035833,15]
[341053963,1730308245350,-191.03843706,0.00035833,15]
[341053964,1730308245360,-500.0,0.00035833,15]
[341053965,1730308245369,-612.79221754,0.00035833,15]
[341053966,1730308245380,-1000.0,0.00035833,2]
[341053967,1730308245394,-1000.0,0.00035833,2]
[341053968,1730308245404,-1000.0,0.00035833,2]
[341053969,1730308245413,-1000.0,0.00035833,2]
[341053970,1730308245423,-1000.0,0.00035833,2]
[341053971,1730308245528,-1000.0,0.00035833,2]
[341053972,1730308245539,-166.91273776,0.00035833,2]
[341053973,1730308245550,-215.05972419,0.00035834,14]
[341053974,1730308245559,-619.93296044,0.00035834,5]
[341053975,1730308245570,-500.0,0.00035834,5]
[341053976,1730308245579,-500.0,0.00035834,5]
[341053977,1730308245589,-506.14068005,0.00035834,5]
[341053978,1730308245599,-156.0649746,0.00035834,5]
[341053979,1730308245610,-500.0,0.00035834,5]
[341053980,1730308245621,-500.0,0.00035834,5]
[341053981,1730308245631,-504.75224776,0.00035834,5]
[341053982,1730308245642,-412.71896257,0.00035834,5]
[341053983,1730308245653,-504.29362598,0.00035834,5]
[341053984,1730308245663,-500.0,0.00035834,5]
[341053985,1730308245673,-501.09006697,0.00035834,5]
[341053986,1730308245683,-500.0,0.00035834,5]
[341053987,1730308245694,-501.50846737,0.00035834,5]
[341053988,1730308245703,-500.0,0.00035834,5]
[341053989,1730308245713,-501.13594513,0.00035834,5]
[341053990,1730308245723,-554.46295581,0.00035834,5]
[341053991,1730308245733,-500.0,0.00035834,5]
[341053992,1730308245744,-504.52407401,0.00035834,5]
[341053993,1730308245755,-500.0,0.00035834,5]
[341053994,1730308245765,-501.48773166,0.00035834,5]
[341053995,1730308245775,-500.0,0.00035834,5]
[341053996,1730308245785,-500.0,0.00035834,5]
[341053997,1730308245795,-500.0,0.00035834,5]
[341053998,1730308245806,-500.0,0.00035834,5]
[341053999,1730308245815,-500.0,0.00035834,5]
[341054000,1730308245825,-500.0,0.00035834,5]
[341054001,1730308245835,-500.0,0.00035834,5]
[341054002,1730308245844,-500.0,0.00035834,5]
[341054003,1730308245854,-500.0,0.00035834,5]
[341054004,1730308245864,-500.0,0.00035834,5]
[341054005,1730308245873,-500.0,0.00035834,5]
[341054006,1730308245883,-500.0,0.00035834,5]
[341054007,1730308245894,-500.0,0.00035834,5]
[341054008,1730308245905,-500.0,0.00035834,5]
[341054009,1730308245915,-500.0,0.00035834,5]
[341054011,1730308245926,-500.0,0.00035834,5]
[341054013,1730308245937,-500.0,0.00035834,5]
[341054014,1730308245947,-502.20336425,0.00035834,5]
[341054015,1730308245957,-500.0,0.00035834,5]
[341054016,1730308245967,-502.19751011,0.00035834,5]
[341054017,1730308245977,-500.0,0.00035834,5]
[341054018,1730308245988,-500.0,0.00035834,5]
[341054019,1730308245998,-500.0,0.00035834,5]
[341054020,1730308246009,-506.71412686,0.00035834,5]
[341054021,1730308246019,-500.0,0.00035834,5]
[341054022,1730308246029,-500.0,0.00035834,5]
[341054023,1730308246040,-500.0,0.00035834,5]
[341054024,1730308246049,-500.0,0.00035834,5]
[341054025,1730308246058,-501.74308257,0.00035834,5]
[341054026,1730308246068,-504.39479916,0.00035834,5]
[341054027,1730308246077,-500.0,0.00035834,5]
[341054028,1730308246086,-500.0,0.00035834,5]
[341054029,1730308246097,-500.0,0.00035834,5]
[341054030,1730308246108,-500.0,0.00035834,5]
[341054031,1730308246119,-500.0,0.00035834,5]
[341054032,1730308246129,-500.0,0.00035834,5]
[341054033,1730308246139,-500.0,0.00035834,5]
[341054034,1730308246153,-500.0,0.00035834,5]
[341054035,1730308246163,-500.0,0.00035834,5]
[341054036,1730308246172,-500.0,0.00035834,5]
[341054037,1730308246182,-500.0,0.00035834,5]
[341054038,1730308246191,-504.7868025,0.00035834,5]
[341054039,1730308246201,-500.0,0.00035834,5]
[341054040,1730308246211,-500.0,0.00035834,5]
[341054041,1730308246220,-500.0,0.00035834,5]
[341054042,1730308246231,-151.0,0.00035834,14]
[341054043,1730308246240,-500.0,0.00035834,5]
[341054044,1730308246251,-151.0,0.00035834,14]
[341054045,1730308246261,-500.0,0.00035834,5]
[341054046,1730308246271,-500.0,0.00035834,5]
[341054047,1730308246281,-36.19267353,0.00035834,5]
[341054049,1730308246897,-500.0,0.00035616,5]
[341054050,1730308246907,-500.0,0.00035616,5]
[341054051,1730308246917,-5.12435666,0.00035834,5]
[341054203,1730308248922,167.801442,0.00013973,2]
[341055808,1730308265055,15040.31,0.00029527,2]
[341056558,1730308272849,250.34825633,0.00024658,2]
[341058838,1730308307934,12306.0,0.00025,2]
[341058852,1730309154381,-224.7027803,0.00026837,2]
[341058853,1730309154404,-216.659424,0.00029532,2]
[341058854,1730309154427,-150.0,0.000298,2]
[341058855,1730309154449,-151.0,0.0003,120]
[341058856,1730309154472,-289.08758983,0.00030066,2]
[341058857,1730309159774,162.798362,0.00013973,2]
[341058862,1730309226143,-162.798362,0.00022174,2]
[341058863,1730309226168,-165.365991,0.00028499,2]
[341058864,1730309226192,-165.365991,0.00028605,2]
[341058865,1730309226221,-165.365991,0.00028711,2]
[341058866,1730309226244,-165.365991,0.00028817,2]
[341058867,1730309226269,-165.365991,0.00028923,2]
[341058868,1730309226292,-165.365991,0.00029029,2]
[341058869,1730309226315,-165.365991,0.00029135,2]
[341058870,1730309226339,-165.365991,0.00029242,2]
[341058871,1730309226363,-165.365991,0.00029348,2]
[341058872,1730309226386,-165.365991,0.00029454,2]
[341058873,1730309226410,-165.365991,0.0002956,2]
[341058874,1730309226434,-165.365991,0.00029666,2]
[341058875,1730309226459,-165.365991,0.00029772,2]
[341058876,1730309226482,-165.365991,0.00029878,2]
[341058877,1730309226504,-191.75532486,0.00029967,2]
[341058878,1730309226527,-165.365991,0.00029984,2]
[341058879,1730309226549,-745.8933858,0.00030066,2]
[341058880,1730309230190,-244.01265937,0.00030066,2]
[341058881,1730309230218,-162.798362,0.00030374,2]
[341058882,1730309230245,-393.18897863,0.00030423,2]
[341058883,1730309230418,-6.81102137,0.00030423,2]
[341058884,1730309230444,-400.0,0.00030423,2]
[341058885,1730309230469,-9337.7298516,0.00030424,2]
[341058888,1730309278126,241.61806335,0.00023,2]
[341058889,1730309296488,2.39459602,0.0003,120]
[341058893,1730309323016,76667.04069588,0.00034383,120]
[341058895,1730309325147,1068.8274639,0.0002,120]
[341058896,1730309326406,150.0,2.75e-05,120]
[341058897,1730309331682,150.0,0.0002102,62]
[341058898,1730309360111,-300.0,0.00024999,2]
[341058899,1730309360131,-300.0,0.00024999,2]
[341058900,1730309360152,-165.07059349,0.00025,2]
[341058901,1730309360172,-202.91029491,0.00025,2]
[341058902,1730309360192,-508.60264996,0.00025,2]
[341058903,1730309360211,-345.79517771,0.00025,2]
[341058904,1730309360231,-825.64891608,0.00025,2]
[341058905,1730309360252,-400.0,0.00025469,3]
[341058906,1730309360273,-420.0,0.00027082,2]
[341058907,1730309360293,-420.0,0.00027499,2]
[341058908,1730309360313,-161.21640413,0.000275,2]
[341058909,1730309360334,-858.13841231,0.00029,2]
[341058910,1730309360354,-587.0,0.00029339,2]
[341058911,1730309360374,-148.60540398,0.0003,120]
[341058912,1730309360395,-587.0,0.00030249,2]
[341058913,1730309360415,-15562.2701484,0.00030424,2]
[341058914,1730309360436,-187.2713865,0.0003065,2]
[341058915,1730309360457,-352.0,0.00030751,2]
[341058916,1730309360478,-1278.993635,0.00030751,2]
[341058917,1730309360501,-1146.005731,0.00031049,2]
[341058918,1730309360523,-150.905,0.0003119,120]
[341058919,1730309360543,-1278.993635,0.00031436,2]
[341058920,1730309360565,-823.0,0.00031784,2]
[341058921,1730309360586,-500.0,0.00031848,2]
[341058922,1730309360607,-500.0,0.00031848,2]
[341058923,1730309360629,-500.0,0.00031848,2]
[341058924,1730309360652,-500.0,0.00031848,2]
[341058925,1730309360674,-503.45822223,0.00031848,2]
[341058926,1730309360697,-500.0,0.00031848,2]
[341058927,1730309360721,-497.70272698,0.00031848,2]
[341058928,1730309360747,-500.0,0.00031848,2]
[341058929,1730309360768,-500.0,0.00031848,2]
[341058930,1730309360790,-500.0,0.00031848,2]
[341058931,1730309360816,-500.0,0.00031848,2]
[341058932,1730309360837,-500.0,0.00031848,2]
[341058933,1730309360858,-500.0,0.00031848,2]
[341058934,1730309360879,-500.0,0.00031848,2]
[341058935,1730309360900,-166.01723505,0.00031848,2]
[341058936,1730309360927,-500.0,0.00031848,2]
[341058937,1730309360950,-321.23952877,0.00031848,2]
[341058938,1730309360971,-500.0,0.00031848,2]
[341058939,1730309360995,-500.0,0.00031848,2]
[341058940,1730309361019,-500.0,0.00031848,2]
[341058941,1730309361043,-500.0,0.00031848,2]
[341058942,1730309361065,-367.91814492,0.00031848,2]
[341058943,1730309361086,-500.0,0.00031848,2]
[341058944,1730309361108,-500.0,0.00031848,2]
[341058945,1730309361129,-500.0,0.00031848,2]
[341058946,1730309361151,-500.0,0.00031848,2]
[341058947,1730309361173,-500.0,0.00031848,2]
[341058948,1730309361270,-500.0,0.00031848,2]
[341058949,1730309361295,-500.0,0.00031848,2]
[341058950,1730309361316,-500.0,0.00031848,2]
[341058951,1730309361337,-500.0,0.00031848,2]
[341058952,1730309361359,-500.0,0.00031848,2]
[341058953,1730309361381,-500.0,0.00031848,2]
[341058954,1730309361403,-500.0,0.00031848,2]
[341058955,1730309361425,-500.0,0.00031848,2]
[341058956,1730309361447,-500.0,0.00031848,2]
[341058957,1730309361469,-500.0,0.00031848,2]
[341058958,1730309361490,-500.0,0.00031848,2]
[341058959,1730309361511,-500.0,0.00031848,2]
[341058960,1730309361533,-393.26257047,0.00031848,2]
[341058961,1730309361555,-500.0,0.00031848,2]
[341058962,1730309361577,-500.0,0.00031848,2]
[341058963,1730309361600,-160.64229731,0.00031848,2]
[341058964,1730309361621,-500.0,0.00031848,2]
[341058965,1730309361643,-500.0,0.00031848,2]
[341058966,1730309361665,-500.0,0.00031848,2]
[341058967,1730309361686,-500.0,0.00031848,2]
[341058968,1730309361707,-500.0,0.00031848,2]
[341058969,1730309361727,-500.0,0.00031848,2]
[341058970,1730309361752,-500.0,0.00031848,2]
[341058971,1730309361775,-500.0,0.00031848,2]
[341058972,1730309361795,-500.0,0.00031848,2]
[341058973,1730309361820,-500.0,0.00031848,2]
[341058974,1730309361842,-500.0,0.00031848,2]
[341058975,1730309361865,-500.0,0.00031848,2]
[341058976,1730309361886,-500.0,0.00031848,2]
[341058977,1730309361906,-500.0,0.00031848,2]
[341058978,1730309361930,-500.0,0.00031848,2]
[341058979,1730309361955,-500.0,0.00031848,2]
[341058980,1730309361975,-500.0,0.00031848,2]
[341058981,1730309361995,-500.0,0.00031848,2]
[341058982,1730309362019,-500.0,0.00031848,2]
[341058983,1730309362043,-500.0,0.00031848,2]
[341058984,1730309362068,-500.0,0.00031848,2]
[341058985,1730309362093,-500.0,0.00031848,2]
[341058986,1730309362118,-500.0,0.00031848,2]
[341058987,1730309362140,-500.0,0.00031848,2]
[341058988,1730309362160,-500.0,0.00031848,2]
[341058989,1730309362180,-500.0,0.00031848,2]
[341058990,1730309362201,-500.0,0.00031848,2]
[341058991,1730309362224,-500.0,0.00031848,2]
[341058992,1730309362244,-500.0,0.00031848,2]
[341058993,1730309362266,-500.0,0.00031848,2]
[341058994,1730309362287,-500.0,0.00031848,2]
[341058995,1730309362309,-200.0,0.00031848,2]
[341058996,1730309362330,-500.0,0.00031848,2]
[341058997,1730309362351,-500.0,0.00031848,2]
[341058998,1730309362374,-500.0,0.00031848,2]
[341058999,1730309362394,-500.0,0.00031848,2]
[341059000,1730309362415,-151.0,0.00031863,120]
[341059001,1730309362439,-500.0,0.000319,2]
[341059002,1730309362460,-500.29066461,0.000319,5]
[341059003,1730309362481,-500.0,0.000319,5]
[341059004,1730309362502,-150.835,0.0003199,7]
[341059005,1730309362522,-500.0,0.00032175,5]
[341059006,1730309362542,-177.10987368,0.00032175,5]
[341059007,1730309362564,-500.0,0.00032175,5]
[341059008,1730309362584,-500.0,0.00032175,5]
[341059009,1730309362605,-500.0,0.00032175,5]
[341059010,1730309362627,-539.79342445,0.00032637,2]
[341059011,1730309362647,-1253.67401348,0.00032638,2]
[341059012,1730309362668,-167.03,0.00032726,10]
[341059013,1730309362688,-212.68,0.00032726,10]
[341059014,1730309362709,-177.24,0.00032726,10]
[341059015,1730309362730,-195.53,0.00032729,2]
[341059016,1730309362754,-500.0,0.00032735,2]
[341059017,1730309362776,-500.0,0.00032735,2]
[341059018,1730309362879,-174.06580129,0.00032735,2]
[341059019,1730309362903,-196.40914794,0.00032735,2]
[341059020,1730309362925,-500.0,0.00032735,2]
[341059021,1730309362947,-301.14724454,0.00032735,2]
[341059022,1730309362969,-500.0,0.00032735,2]
[341059023,1730309362992,-401.08452077,0.00032735,2]
[341059024,1730309363014,-500.0,0.00032735,2]
[341059025,1730309363037,-596.28496833,0.00032736,7]
[341059026,1730309363061,-26147.86,0.00032736,2]
[341059027,1730309363084,-15194.65968411,0.00032736,2]
[341059028,1730309368094,-886.2,0.00032726,10]
[341059029,1730309368117,-10953.20031589,0.00032736,2]
[341059030,1730309368140,-26147.86,0.00032737,2]
[341059031,1730309368162,-179.546412,0.00032737,7]
[341059032,1730309368184,-179.546412,0.00032737,7]
[341059033,1730309368206,-151.0,0.00032737,7]
[341059034,1730309368228,-166.976418,0.00032737,7]
[341059035,1730309368248,-166.976418,0.00032737,7]
[341059036,1730309368269,-151.0,0.00032737,7]
[341059037,1730309368291,-151.0,0.00032737,7]
[341059038,1730309368312,-157.355519,0.00032737,7]
[341059039,1730309368336,-157.355519,0.00032737,7]
[341059040,1730309368359,-335.373942,0.00032737,7]
[341059041,1730309368381,-335.373942,0.00032737,7]
[341059042,1730309368404,-26147.86,0.00032738,2]
[341059043,1730309368426,-151.0,0.00032738,7]
[341059044,1730309368447,-151.0,0.00032738,7]
[341059045,1730309368470,-151.0,0.00032738,7]
[341059046,1730309368491,-500.0,0.00032773,5]
[341059047,1730309368513,-255.15937124,0.00032773,5]
[341059048,1730309368533,-150.30866372,0.00032773,5]
[341059049,1730309368554,-500.81776282,0.00032773,5]
[341059050,1730309368576,-500.0,0.00032773,5]
[341059051,1730309368598,-500.0,0.00032773,2]
[341059052,1730309368699,-500.0,0.00032773,5]
[341059053,1730309368721,-500.0,0.00032773,5]
[341059054,1730309368744,-500.0,0.00032773,5]
[341059055,1730309368765,-150.85,0.0003279,7]
[341059056,1730309368787,-6214.36974433,0.00032799,2]
[341059057,1730309373107,-19933.49025567,0.00032799,2]
[341059058,1730309373130,-179.546412,0.00032799,7]
[341059059,1730309373152,-179.546412,0.00032799,7]
[341059060,1730309373173,-151.0,0.00032799,7]
[341059061,1730309373194,-166.976418,0.00032799,7]
[341059062,1730309373216,-166.976418,0.00032799,7]
[341059063,1730309373237,-151.0,0.00032799,7]
[341059064,1730309373258,-151.0,0.00032799,7]
[341059065,1730309373279,-157.355519,0.00032799,7]
[341059066,1730309373301,-157.355519,0.00032799,7]
[341059067,1730309373323,-335.373942,0.00032799,7]
[341059068,1730309373346,-335.373942,0.00032799,7]
[341059069,1730309373372,-151.0,0.00032799,7]
[341059070,1730309373411,-151.0,0.00032799,7]
[341059071,1730309373444,-151.0,0.00032799,6]
[341059072,1730309373481,-151.0,0.00032799,6]
[341059073,1730309373517,-151.0,0.00032799,7]
[341059074,1730309373550,-151.0,0.00032799,7]
[341059075,1730309373586,-362.0,0.00033,2]
[341059076,1730309373616,-362.0,0.00033151,2]
[341059077,1730309373648,-823.0,0.00033274,2]
[341059078,1730309373684,-1253.67401346,0.00033357,2]
[341059079,1730309373711,-151.43,0.0003359,3]
[341059080,1730309373746,-168.63446517,0.00033655,2]
[341059081,1730309373779,-151.0,0.00033726,120]
[341059082,1730309374024,500.0,0.00032773,2]
[341059085,1730309381934,269.109126,0.00032738,7]
[341059086,1730309385803,269.109126,0.00032738,7]
[341059087,1730309391387,1008.8,0.00034383,30]